{"text_format":"3","workbook":"xlsx","n_sheets":3,"sheets":["Лист1","Лист2","Лист3"],"not_rendered":{"defined_names":1},"read":"whole","date_system":"1900"}

{"sheet":"Лист1","index":0,"n_rows":64,"n_cols":20,"rows_kept":64}
["Source: \"content\\tessdata\\","afr",".*\"; DestDir: \"{app}\\tessdata\"; Flags: ignoreversion; Components: Languages\\","Afrikaans",{"$f":"CONCATENATE($A$1,B1,$C$1,D1)","v":"Source: \"content\\tessdata\\afr.*\"; DestDir: \"{app}\\tessdata\"; Flags: ignoreversion; Components: Languages\\Afrikaans"}," ","Name: \"Languages\\","\"; Description: \"{cm:","}\"; Types: ",null,null,"full",{"$f":"CONCATENATE($G$1,D1,$H$1,D1,$I$1,J1,K1,L1)","v":"Name: \"Languages\\Afrikaans\"; Description: \"{cm:Afrikaans}\"; Types: full"}," ","english.","=",{"$f":"CONCATENATE($O$1,D1,$P$1,D1)","v":"english.Afrikaans=Afrikaans"}," ","Африкаанс ",{"$f":"CONCATENATE(D1,$P$1,S1)","v":"Afrikaans=Африкаанс "}]
[null,"sqi",null,"Albanian",{"$f":"CONCATENATE($A$1,B2,$C$1,D2)","v":"Source: \"content\\tessdata\\sqi.*\"; DestDir: \"{app}\\tessdata\"; Flags: ignoreversion; Components: Languages\\Albanian"}," ",{"$nulls":5},"full",{"$f":"CONCATENATE($G$1,D2,$H$1,D2,$I$1,J2,K2,L2)","v":"Name: \"Languages\\Albanian\"; Description: \"{cm:Albanian}\"; Types: full"}," ",null,null,{"$f":"CONCATENATE($O$1,D2,$P$1,D2)","v":"english.Albanian=Albanian"}," ","Албанский ",{"$f":"CONCATENATE(D2,$P$1,S2)","v":"Albanian=Албанский "}]
[null,"grc",null,"AncientGreek",{"$f":"CONCATENATE($A$1,B3,$C$1,D3)","v":"Source: \"content\\tessdata\\grc.*\"; DestDir: \"{app}\\tessdata\"; Flags: ignoreversion; Components: Languages\\AncientGreek"}," ",{"$nulls":5},"full",{"$f":"CONCATENATE($G$1,D3,$H$1,D3,$I$1,J3,K3,L3)","v":"Name: \"Languages\\AncientGreek\"; Description: \"{cm:AncientGreek}\"; Types: full"}," ",null,null,{"$f":"CONCATENATE($O$1,D3,$P$1,D3)","v":"english.AncientGreek=AncientGreek"}," ","Древнегреческий",{"$f":"CONCATENATE(D3,$P$1,S3)","v":"AncientGreek=Древнегреческий"}]
[null,"ara",null,"Arabic",{"$f":"CONCATENATE($A$1,B4,$C$1,D4)","v":"Source: \"content\\tessdata\\ara.*\"; DestDir: \"{app}\\tessdata\"; Flags: ignoreversion; Components: Languages\\Arabic"}," ",{"$nulls":5},"full",{"$f":"CONCATENATE($G$1,D4,$H$1,D4,$I$1,J4,K4,L4)","v":"Name: \"Languages\\Arabic\"; Description: \"{cm:Arabic}\"; Types: full"}," ",null,null,{"$f":"CONCATENATE($O$1,D4,$P$1,D4)","v":"english.Arabic=Arabic"}," ","Арабский ",{"$f":"CONCATENATE(D4,$P$1,S4)","v":"Arabic=Арабский "}]
[null,"aze",null,"Azerbaijani",{"$f":"CONCATENATE($A$1,B5,$C$1,D5)","v":"Source: \"content\\tessdata\\aze.*\"; DestDir: \"{app}\\tessdata\"; Flags: ignoreversion; Components: Languages\\Azerbaijani"}," ",{"$nulls":5},"full",{"$f":"CONCATENATE($G$1,D5,$H$1,D5,$I$1,J5,K5,L5)","v":"Name: \"Languages\\Azerbaijani\"; Description: \"{cm:Azerbaijani}\"; Types: full"}," ",null,null,{"$f":"CONCATENATE($O$1,D5,$P$1,D5)","v":"english.Azerbaijani=Azerbaijani"}," ","Азербайджанский ",{"$f":"CONCATENATE(D5,$P$1,S5)","v":"Azerbaijani=Азербайджанский "}]
[null,"eus",null,"Basque",{"$f":"CONCATENATE($A$1,B6,$C$1,D6)","v":"Source: \"content\\tessdata\\eus.*\"; DestDir: \"{app}\\tessdata\"; Flags: ignoreversion; Components: Languages\\Basque"}," ",{"$nulls":5},"full",{"$f":"CONCATENATE($G$1,D6,$H$1,D6,$I$1,J6,K6,L6)","v":"Name: \"Languages\\Basque\"; Description: \"{cm:Basque}\"; Types: full"}," ",null,null,{"$f":"CONCATENATE($O$1,D6,$P$1,D6)","v":"english.Basque=Basque"}," ","Баскский ",{"$f":"CONCATENATE(D6,$P$1,S6)","v":"Basque=Баскский "}]
[null,"bel",null,"Belarusian",{"$f":"CONCATENATE($A$1,B7,$C$1,D7)","v":"Source: \"content\\tessdata\\bel.*\"; DestDir: \"{app}\\tessdata\"; Flags: ignoreversion; Components: Languages\\Belarusian"}," ",{"$nulls":5},"full",{"$f":"CONCATENATE($G$1,D7,$H$1,D7,$I$1,J7,K7,L7)","v":"Name: \"Languages\\Belarusian\"; Description: \"{cm:Belarusian}\"; Types: full"}," ",null,null,{"$f":"CONCATENATE($O$1,D7,$P$1,D7)","v":"english.Belarusian=Belarusian"}," ","Белорусский ",{"$f":"CONCATENATE(D7,$P$1,S7)","v":"Belarusian=Белорусский "}]
[null,"ben",null,"Bengali",{"$f":"CONCATENATE($A$1,B8,$C$1,D8)","v":"Source: \"content\\tessdata\\ben.*\"; DestDir: \"{app}\\tessdata\"; Flags: ignoreversion; Components: Languages\\Bengali"}," ",{"$nulls":5},"full",{"$f":"CONCATENATE($G$1,D8,$H$1,D8,$I$1,J8,K8,L8)","v":"Name: \"Languages\\Bengali\"; Description: \"{cm:Bengali}\"; Types: full"}," ",null,null,{"$f":"CONCATENATE($O$1,D8,$P$1,D8)","v":"english.Bengali=Bengali"}," ","Бенгальский ",{"$f":"CONCATENATE(D8,$P$1,S8)","v":"Bengali=Бенгальский "}]
[null,"bul",null,"Bulgarian",{"$f":"CONCATENATE($A$1,B9,$C$1,D9)","v":"Source: \"content\\tessdata\\bul.*\"; DestDir: \"{app}\\tessdata\"; Flags: ignoreversion; Components: Languages\\Bulgarian"}," ",{"$nulls":5},"full",{"$f":"CONCATENATE($G$1,D9,$H$1,D9,$I$1,J9,K9,L9)","v":"Name: \"Languages\\Bulgarian\"; Description: \"{cm:Bulgarian}\"; Types: full"}," ",null,null,{"$f":"CONCATENATE($O$1,D9,$P$1,D9)","v":"english.Bulgarian=Bulgarian"}," ","Болгарский ",{"$f":"CONCATENATE(D9,$P$1,S9)","v":"Bulgarian=Болгарский "}]
[null,"cat",null,"Catalan",{"$f":"CONCATENATE($A$1,B10,$C$1,D10)","v":"Source: \"content\\tessdata\\cat.*\"; DestDir: \"{app}\\tessdata\"; Flags: ignoreversion; Components: Languages\\Catalan"}," ",{"$nulls":5},"full",{"$f":"CONCATENATE($G$1,D10,$H$1,D10,$I$1,J10,K10,L10)","v":"Name: \"Languages\\Catalan\"; Description: \"{cm:Catalan}\"; Types: full"}," ",null,null,{"$f":"CONCATENATE($O$1,D10,$P$1,D10)","v":"english.Catalan=Catalan"}," ","Каталонский ",{"$f":"CONCATENATE(D10,$P$1,S10)","v":"Catalan=Каталонский "}]
[null,"chr",null,"Cherokee",{"$f":"CONCATENATE($A$1,B11,$C$1,D11)","v":"Source: \"content\\tessdata\\chr.*\"; DestDir: \"{app}\\tessdata\"; Flags: ignoreversion; Components: Languages\\Cherokee"}," ",{"$nulls":5},"full",{"$f":"CONCATENATE($G$1,D11,$H$1,D11,$I$1,J11,K11,L11)","v":"Name: \"Languages\\Cherokee\"; Description: \"{cm:Cherokee}\"; Types: full"}," ",null,null,{"$f":"CONCATENATE($O$1,D11,$P$1,D11)","v":"english.Cherokee=Cherokee"}," ","Чероки ",{"$f":"CONCATENATE(D11,$P$1,S11)","v":"Cherokee=Чероки "}]
[null,"chi_sim",null,"ChineseSimplified",{"$f":"CONCATENATE($A$1,B12,$C$1,D12)","v":"Source: \"content\\tessdata\\chi_sim.*\"; DestDir: \"{app}\\tessdata\"; Flags: ignoreversion; Components: Languages\\ChineseSimplified"}," ",{"$nulls":5},"full",{"$f":"CONCATENATE($G$1,D12,$H$1,D12,$I$1,J12,K12,L12)","v":"Name: \"Languages\\ChineseSimplified\"; Description: \"{cm:ChineseSimplified}\"; Types: full"}," ",null,null,{"$f":"CONCATENATE($O$1,D12,$P$1,D12)","v":"english.ChineseSimplified=ChineseSimplified"}," ","Китайский (упрощенный) ",{"$f":"CONCATENATE(D12,$P$1,S12)","v":"ChineseSimplified=Китайский (упрощенный) "}]
[null,"chi_tra",null,"ChineseTraditional",{"$f":"CONCATENATE($A$1,B13,$C$1,D13)","v":"Source: \"content\\tessdata\\chi_tra.*\"; DestDir: \"{app}\\tessdata\"; Flags: ignoreversion; Components: Languages\\ChineseTraditional"}," ",{"$nulls":3},"compact ","custom ","full",{"$f":"CONCATENATE($G$1,D13,$H$1,D13,$I$1,J13,K13,L13)","v":"Name: \"Languages\\ChineseTraditional\"; Description: \"{cm:ChineseTraditional}\"; Types: compact custom full"}," ",null,null,{"$f":"CONCATENATE($O$1,D13,$P$1,D13)","v":"english.ChineseTraditional=ChineseTraditional"}," ","Китайский (традиционный) ",{"$f":"CONCATENATE(D13,$P$1,S13)","v":"ChineseTraditional=Китайский (традиционный) "}]
[null,"hrv",null,"Croatian",{"$f":"CONCATENATE($A$1,B14,$C$1,D14)","v":"Source: \"content\\tessdata\\hrv.*\"; DestDir: \"{app}\\tessdata\"; Flags: ignoreversion; Components: Languages\\Croatian"}," ",{"$nulls":5},"full",{"$f":"CONCATENATE($G$1,D14,$H$1,D14,$I$1,J14,K14,L14)","v":"Name: \"Languages\\Croatian\"; Description: \"{cm:Croatian}\"; Types: full"}," ",null,null,{"$f":"CONCATENATE($O$1,D14,$P$1,D14)","v":"english.Croatian=Croatian"}," ","Хорватский ",{"$f":"CONCATENATE(D14,$P$1,S14)","v":"Croatian=Хорватский "}]
[null,"ces",null,"Czech",{"$f":"CONCATENATE($A$1,B15,$C$1,D15)","v":"Source: \"content\\tessdata\\ces.*\"; DestDir: \"{app}\\tessdata\"; Flags: ignoreversion; Components: Languages\\Czech"}," ",{"$nulls":5},"full",{"$f":"CONCATENATE($G$1,D15,$H$1,D15,$I$1,J15,K15,L15)","v":"Name: \"Languages\\Czech\"; Description: \"{cm:Czech}\"; Types: full"}," ",null,null,{"$f":"CONCATENATE($O$1,D15,$P$1,D15)","v":"english.Czech=Czech"}," ","Чешский ",{"$f":"CONCATENATE(D15,$P$1,S15)","v":"Czech=Чешский "}]
[null,"dan",null,"Danish",{"$f":"CONCATENATE($A$1,B16,$C$1,D16)","v":"Source: \"content\\tessdata\\dan.*\"; DestDir: \"{app}\\tessdata\"; Flags: ignoreversion; Components: Languages\\Danish"}," ",{"$nulls":5},"full",{"$f":"CONCATENATE($G$1,D16,$H$1,D16,$I$1,J16,K16,L16)","v":"Name: \"Languages\\Danish\"; Description: \"{cm:Danish}\"; Types: full"}," ",null,null,{"$f":"CONCATENATE($O$1,D16,$P$1,D16)","v":"english.Danish=Danish"}," ","Датский ",{"$f":"CONCATENATE(D16,$P$1,S16)","v":"Danish=Датский "}]
[null,"nld",null,"Dutch",{"$f":"CONCATENATE($A$1,B17,$C$1,D17)","v":"Source: \"content\\tessdata\\nld.*\"; DestDir: \"{app}\\tessdata\"; Flags: ignoreversion; Components: Languages\\Dutch"}," ",{"$nulls":5},"full",{"$f":"CONCATENATE($G$1,D17,$H$1,D17,$I$1,J17,K17,L17)","v":"Name: \"Languages\\Dutch\"; Description: \"{cm:Dutch}\"; Types: full"}," ",null,null,{"$f":"CONCATENATE($O$1,D17,$P$1,D17)","v":"english.Dutch=Dutch"}," ","Голландский ",{"$f":"CONCATENATE(D17,$P$1,S17)","v":"Dutch=Голландский "}]
[null,"eng",null,"English",{"$f":"CONCATENATE($A$1,B18,$C$1,D18)","v":"Source: \"content\\tessdata\\eng.*\"; DestDir: \"{app}\\tessdata\"; Flags: ignoreversion; Components: Languages\\English"}," ",{"$nulls":3},"compact ","custom ","full",{"$f":"CONCATENATE($G$1,D18,$H$1,D18,$I$1,J18,K18,L18)","v":"Name: \"Languages\\English\"; Description: \"{cm:English}\"; Types: compact custom full"}," ",null,null,{"$f":"CONCATENATE($O$1,D18,$P$1,D18)","v":"english.English=English"}," ","Английский ",{"$f":"CONCATENATE(D18,$P$1,S18)","v":"English=Английский "}]
[null,"epo",null,"Esperanto",{"$f":"CONCATENATE($A$1,B19,$C$1,D19)","v":"Source: \"content\\tessdata\\epo.*\"; DestDir: \"{app}\\tessdata\"; Flags: ignoreversion; Components: Languages\\Esperanto"}," ",{"$nulls":5},"full",{"$f":"CONCATENATE($G$1,D19,$H$1,D19,$I$1,J19,K19,L19)","v":"Name: \"Languages\\Esperanto\"; Description: \"{cm:Esperanto}\"; Types: full"}," ",null,null,{"$f":"CONCATENATE($O$1,D19,$P$1,D19)","v":"english.Esperanto=Esperanto"}," ","Эсперанто ",{"$f":"CONCATENATE(D19,$P$1,S19)","v":"Esperanto=Эсперанто "}]
[null,"epo_alt",null,"Esperantoalternative",{"$f":"CONCATENATE($A$1,B20,$C$1,D20)","v":"Source: \"content\\tessdata\\epo_alt.*\"; DestDir: \"{app}\\tessdata\"; Flags: ignoreversion; Components: Languages\\Esperantoalternative"}," ",{"$nulls":5},"full",{"$f":"CONCATENATE($G$1,D20,$H$1,D20,$I$1,J20,K20,L20)","v":"Name: \"Languages\\Esperantoalternative\"; Description: \"{cm:Esperantoalternative}\"; Types: full"}," ",null,null,{"$f":"CONCATENATE($O$1,D20,$P$1,D20)","v":"english.Esperantoalternative=Esperantoalternative"}," ","Эсперанто альтернативный",{"$f":"CONCATENATE(D20,$P$1,S20)","v":"Esperantoalternative=Эсперанто альтернативный"}]
[null,"est",null,"Estonian",{"$f":"CONCATENATE($A$1,B21,$C$1,D21)","v":"Source: \"content\\tessdata\\est.*\"; DestDir: \"{app}\\tessdata\"; Flags: ignoreversion; Components: Languages\\Estonian"}," ",{"$nulls":5},"full",{"$f":"CONCATENATE($G$1,D21,$H$1,D21,$I$1,J21,K21,L21)","v":"Name: \"Languages\\Estonian\"; Description: \"{cm:Estonian}\"; Types: full"}," ",null,null,{"$f":"CONCATENATE($O$1,D21,$P$1,D21)","v":"english.Estonian=Estonian"}," ","Эстонский ",{"$f":"CONCATENATE(D21,$P$1,S21)","v":"Estonian=Эстонский "}]
[null,"fin",null,"Finnish",{"$f":"CONCATENATE($A$1,B22,$C$1,D22)","v":"Source: \"content\\tessdata\\fin.*\"; DestDir: \"{app}\\tessdata\"; Flags: ignoreversion; Components: Languages\\Finnish"}," ",{"$nulls":5},"full",{"$f":"CONCATENATE($G$1,D22,$H$1,D22,$I$1,J22,K22,L22)","v":"Name: \"Languages\\Finnish\"; Description: \"{cm:Finnish}\"; Types: full"}," ",null,null,{"$f":"CONCATENATE($O$1,D22,$P$1,D22)","v":"english.Finnish=Finnish"}," ","Финский ",{"$f":"CONCATENATE(D22,$P$1,S22)","v":"Finnish=Финский "}]
[null,"frk",null,"Frankish",{"$f":"CONCATENATE($A$1,B23,$C$1,D23)","v":"Source: \"content\\tessdata\\frk.*\"; DestDir: \"{app}\\tessdata\"; Flags: ignoreversion; Components: Languages\\Frankish"}," ",{"$nulls":5},"full",{"$f":"CONCATENATE($G$1,D23,$H$1,D23,$I$1,J23,K23,L23)","v":"Name: \"Languages\\Frankish\"; Description: \"{cm:Frankish}\"; Types: full"}," ",null,null,{"$f":"CONCATENATE($O$1,D23,$P$1,D23)","v":"english.Frankish=Frankish"}," ","Франкский",{"$f":"CONCATENATE(D23,$P$1,S23)","v":"Frankish=Франкский"}]
[null,"fra",null,"French",{"$f":"CONCATENATE($A$1,B24,$C$1,D24)","v":"Source: \"content\\tessdata\\fra.*\"; DestDir: \"{app}\\tessdata\"; Flags: ignoreversion; Components: Languages\\French"}," ",{"$nulls":3},"compact ","custom ","full",{"$f":"CONCATENATE($G$1,D24,$H$1,D24,$I$1,J24,K24,L24)","v":"Name: \"Languages\\French\"; Description: \"{cm:French}\"; Types: compact custom full"}," ",null,null,{"$f":"CONCATENATE($O$1,D24,$P$1,D24)","v":"english.French=French"}," ","Французский ",{"$f":"CONCATENATE(D24,$P$1,S24)","v":"French=Французский "}]
[null,"glg",null,"Galician",{"$f":"CONCATENATE($A$1,B25,$C$1,D25)","v":"Source: \"content\\tessdata\\glg.*\"; DestDir: \"{app}\\tessdata\"; Flags: ignoreversion; Components: Languages\\Galician"}," ",{"$nulls":5},"full",{"$f":"CONCATENATE($G$1,D25,$H$1,D25,$I$1,J25,K25,L25)","v":"Name: \"Languages\\Galician\"; Description: \"{cm:Galician}\"; Types: full"}," ",null,null,{"$f":"CONCATENATE($O$1,D25,$P$1,D25)","v":"english.Galician=Galician"}," ","Галицкий",{"$f":"CONCATENATE(D25,$P$1,S25)","v":"Galician=Галицкий"}]
[null,"deu",null,"German",{"$f":"CONCATENATE($A$1,B26,$C$1,D26)","v":"Source: \"content\\tessdata\\deu.*\"; DestDir: \"{app}\\tessdata\"; Flags: ignoreversion; Components: Languages\\German"}," ",{"$nulls":3},"compact ","custom ","full",{"$f":"CONCATENATE($G$1,D26,$H$1,D26,$I$1,J26,K26,L26)","v":"Name: \"Languages\\German\"; Description: \"{cm:German}\"; Types: compact custom full"}," ",null,null,{"$f":"CONCATENATE($O$1,D26,$P$1,D26)","v":"english.German=German"}," ","Немецкий ",{"$f":"CONCATENATE(D26,$P$1,S26)","v":"German=Немецкий "}]
[null,"ell",null,"Greek",{"$f":"CONCATENATE($A$1,B27,$C$1,D27)","v":"Source: \"content\\tessdata\\ell.*\"; DestDir: \"{app}\\tessdata\"; Flags: ignoreversion; Components: Languages\\Greek"}," ",{"$nulls":5},"full",{"$f":"CONCATENATE($G$1,D27,$H$1,D27,$I$1,J27,K27,L27)","v":"Name: \"Languages\\Greek\"; Description: \"{cm:Greek}\"; Types: full"}," ",null,null,{"$f":"CONCATENATE($O$1,D27,$P$1,D27)","v":"english.Greek=Greek"}," ","Греческий ",{"$f":"CONCATENATE(D27,$P$1,S27)","v":"Greek=Греческий "}]
[null,"heb",null,"Hebrew",{"$f":"CONCATENATE($A$1,B28,$C$1,D28)","v":"Source: \"content\\tessdata\\heb.*\"; DestDir: \"{app}\\tessdata\"; Flags: ignoreversion; Components: Languages\\Hebrew"}," ",{"$nulls":5},"full",{"$f":"CONCATENATE($G$1,D28,$H$1,D28,$I$1,J28,K28,L28)","v":"Name: \"Languages\\Hebrew\"; Description: \"{cm:Hebrew}\"; Types: full"}," ",null,null,{"$f":"CONCATENATE($O$1,D28,$P$1,D28)","v":"english.Hebrew=Hebrew"}," ","Иврит ",{"$f":"CONCATENATE(D28,$P$1,S28)","v":"Hebrew=Иврит "}]
[null,"hin",null,"Hindi",{"$f":"CONCATENATE($A$1,B29,$C$1,D29)","v":"Source: \"content\\tessdata\\hin.*\"; DestDir: \"{app}\\tessdata\"; Flags: ignoreversion; Components: Languages\\Hindi"}," ",{"$nulls":5},"full",{"$f":"CONCATENATE($G$1,D29,$H$1,D29,$I$1,J29,K29,L29)","v":"Name: \"Languages\\Hindi\"; Description: \"{cm:Hindi}\"; Types: full"}," ",null,null,{"$f":"CONCATENATE($O$1,D29,$P$1,D29)","v":"english.Hindi=Hindi"}," ","Хинди ",{"$f":"CONCATENATE(D29,$P$1,S29)","v":"Hindi=Хинди "}]
[null,"hun",null,"Hungarian",{"$f":"CONCATENATE($A$1,B30,$C$1,D30)","v":"Source: \"content\\tessdata\\hun.*\"; DestDir: \"{app}\\tessdata\"; Flags: ignoreversion; Components: Languages\\Hungarian"}," ",{"$nulls":5},"full",{"$f":"CONCATENATE($G$1,D30,$H$1,D30,$I$1,J30,K30,L30)","v":"Name: \"Languages\\Hungarian\"; Description: \"{cm:Hungarian}\"; Types: full"}," ",null,null,{"$f":"CONCATENATE($O$1,D30,$P$1,D30)","v":"english.Hungarian=Hungarian"}," ","Венгерский ",{"$f":"CONCATENATE(D30,$P$1,S30)","v":"Hungarian=Венгерский "}]
[null,"isl",null,"Icelandic",{"$f":"CONCATENATE($A$1,B31,$C$1,D31)","v":"Source: \"content\\tessdata\\isl.*\"; DestDir: \"{app}\\tessdata\"; Flags: ignoreversion; Components: Languages\\Icelandic"}," ",{"$nulls":5},"full",{"$f":"CONCATENATE($G$1,D31,$H$1,D31,$I$1,J31,K31,L31)","v":"Name: \"Languages\\Icelandic\"; Description: \"{cm:Icelandic}\"; Types: full"}," ",null,null,{"$f":"CONCATENATE($O$1,D31,$P$1,D31)","v":"english.Icelandic=Icelandic"}," ","Исландский ",{"$f":"CONCATENATE(D31,$P$1,S31)","v":"Icelandic=Исландский "}]
[null,"ind",null,"Indonesian",{"$f":"CONCATENATE($A$1,B32,$C$1,D32)","v":"Source: \"content\\tessdata\\ind.*\"; DestDir: \"{app}\\tessdata\"; Flags: ignoreversion; Components: Languages\\Indonesian"}," ",{"$nulls":5},"full",{"$f":"CONCATENATE($G$1,D32,$H$1,D32,$I$1,J32,K32,L32)","v":"Name: \"Languages\\Indonesian\"; Description: \"{cm:Indonesian}\"; Types: full"}," ",null,null,{"$f":"CONCATENATE($O$1,D32,$P$1,D32)","v":"english.Indonesian=Indonesian"}," ","Индонезийский ",{"$f":"CONCATENATE(D32,$P$1,S32)","v":"Indonesian=Индонезийский "}]
[null,"ita",null,"Italian",{"$f":"CONCATENATE($A$1,B33,$C$1,D33)","v":"Source: \"content\\tessdata\\ita.*\"; DestDir: \"{app}\\tessdata\"; Flags: ignoreversion; Components: Languages\\Italian"}," ",{"$nulls":5},"full",{"$f":"CONCATENATE($G$1,D33,$H$1,D33,$I$1,J33,K33,L33)","v":"Name: \"Languages\\Italian\"; Description: \"{cm:Italian}\"; Types: full"}," ",null,null,{"$f":"CONCATENATE($O$1,D33,$P$1,D33)","v":"english.Italian=Italian"}," ","Итальянский ",{"$f":"CONCATENATE(D33,$P$1,S33)","v":"Italian=Итальянский "}]
[null,"jpn",null,"Japanese",{"$f":"CONCATENATE($A$1,B34,$C$1,D34)","v":"Source: \"content\\tessdata\\jpn.*\"; DestDir: \"{app}\\tessdata\"; Flags: ignoreversion; Components: Languages\\Japanese"}," ",{"$nulls":3},"compact ","custom ","full",{"$f":"CONCATENATE($G$1,D34,$H$1,D34,$I$1,J34,K34,L34)","v":"Name: \"Languages\\Japanese\"; Description: \"{cm:Japanese}\"; Types: compact custom full"}," ",null,null,{"$f":"CONCATENATE($O$1,D34,$P$1,D34)","v":"english.Japanese=Japanese"}," ","Японский ",{"$f":"CONCATENATE(D34,$P$1,S34)","v":"Japanese=Японский "}]
[null,"kan",null,"Kannada",{"$f":"CONCATENATE($A$1,B35,$C$1,D35)","v":"Source: \"content\\tessdata\\kan.*\"; DestDir: \"{app}\\tessdata\"; Flags: ignoreversion; Components: Languages\\Kannada"}," ",{"$nulls":5},"full",{"$f":"CONCATENATE($G$1,D35,$H$1,D35,$I$1,J35,K35,L35)","v":"Name: \"Languages\\Kannada\"; Description: \"{cm:Kannada}\"; Types: full"}," ",null,null,{"$f":"CONCATENATE($O$1,D35,$P$1,D35)","v":"english.Kannada=Kannada"}," ","Каннада ",{"$f":"CONCATENATE(D35,$P$1,S35)","v":"Kannada=Каннада "}]
[null,"kor",null,"Korean",{"$f":"CONCATENATE($A$1,B36,$C$1,D36)","v":"Source: \"content\\tessdata\\kor.*\"; DestDir: \"{app}\\tessdata\"; Flags: ignoreversion; Components: Languages\\Korean"}," ",{"$nulls":3},"compact ","custom ","full",{"$f":"CONCATENATE($G$1,D36,$H$1,D36,$I$1,J36,K36,L36)","v":"Name: \"Languages\\Korean\"; Description: \"{cm:Korean}\"; Types: compact custom full"}," ",null,null,{"$f":"CONCATENATE($O$1,D36,$P$1,D36)","v":"english.Korean=Korean"}," ","Корейский ",{"$f":"CONCATENATE(D36,$P$1,S36)","v":"Korean=Корейский "}]
[null,"lav",null,"Latvian",{"$f":"CONCATENATE($A$1,B37,$C$1,D37)","v":"Source: \"content\\tessdata\\lav.*\"; DestDir: \"{app}\\tessdata\"; Flags: ignoreversion; Components: Languages\\Latvian"}," ",{"$nulls":5},"full",{"$f":"CONCATENATE($G$1,D37,$H$1,D37,$I$1,J37,K37,L37)","v":"Name: \"Languages\\Latvian\"; Description: \"{cm:Latvian}\"; Types: full"}," ",null,null,{"$f":"CONCATENATE($O$1,D37,$P$1,D37)","v":"english.Latvian=Latvian"}," ","Латышский ",{"$f":"CONCATENATE(D37,$P$1,S37)","v":"Latvian=Латышский "}]
[null,"lit",null,"Lithuanian",{"$f":"CONCATENATE($A$1,B38,$C$1,D38)","v":"Source: \"content\\tessdata\\lit.*\"; DestDir: \"{app}\\tessdata\"; Flags: ignoreversion; Components: Languages\\Lithuanian"}," ",{"$nulls":5},"full",{"$f":"CONCATENATE($G$1,D38,$H$1,D38,$I$1,J38,K38,L38)","v":"Name: \"Languages\\Lithuanian\"; Description: \"{cm:Lithuanian}\"; Types: full"}," ",null,null,{"$f":"CONCATENATE($O$1,D38,$P$1,D38)","v":"english.Lithuanian=Lithuanian"}," ","Литовский ",{"$f":"CONCATENATE(D38,$P$1,S38)","v":"Lithuanian=Литовский "}]
[null,"mkd",null,"Macedonian",{"$f":"CONCATENATE($A$1,B39,$C$1,D39)","v":"Source: \"content\\tessdata\\mkd.*\"; DestDir: \"{app}\\tessdata\"; Flags: ignoreversion; Components: Languages\\Macedonian"}," ",{"$nulls":5},"full",{"$f":"CONCATENATE($G$1,D39,$H$1,D39,$I$1,J39,K39,L39)","v":"Name: \"Languages\\Macedonian\"; Description: \"{cm:Macedonian}\"; Types: full"}," ",null,null,{"$f":"CONCATENATE($O$1,D39,$P$1,D39)","v":"english.Macedonian=Macedonian"}," ","Македонский ",{"$f":"CONCATENATE(D39,$P$1,S39)","v":"Macedonian=Македонский "}]
[null,"msa",null,"Malay",{"$f":"CONCATENATE($A$1,B40,$C$1,D40)","v":"Source: \"content\\tessdata\\msa.*\"; DestDir: \"{app}\\tessdata\"; Flags: ignoreversion; Components: Languages\\Malay"}," ",{"$nulls":5},"full",{"$f":"CONCATENATE($G$1,D40,$H$1,D40,$I$1,J40,K40,L40)","v":"Name: \"Languages\\Malay\"; Description: \"{cm:Malay}\"; Types: full"}," ",null,null,{"$f":"CONCATENATE($O$1,D40,$P$1,D40)","v":"english.Malay=Malay"}," ","Малайский ",{"$f":"CONCATENATE(D40,$P$1,S40)","v":"Malay=Малайский "}]
[null,"mal",null,"Malayalam",{"$f":"CONCATENATE($A$1,B41,$C$1,D41)","v":"Source: \"content\\tessdata\\mal.*\"; DestDir: \"{app}\\tessdata\"; Flags: ignoreversion; Components: Languages\\Malayalam"}," ",{"$nulls":5},"full",{"$f":"CONCATENATE($G$1,D41,$H$1,D41,$I$1,J41,K41,L41)","v":"Name: \"Languages\\Malayalam\"; Description: \"{cm:Malayalam}\"; Types: full"}," ",null,null,{"$f":"CONCATENATE($O$1,D41,$P$1,D41)","v":"english.Malayalam=Malayalam"}," ","Малаялам ",{"$f":"CONCATENATE(D41,$P$1,S41)","v":"Malayalam=Малаялам "}]
[null,"mlt",null,"Maltese",{"$f":"CONCATENATE($A$1,B42,$C$1,D42)","v":"Source: \"content\\tessdata\\mlt.*\"; DestDir: \"{app}\\tessdata\"; Flags: ignoreversion; Components: Languages\\Maltese"}," ",{"$nulls":5},"full",{"$f":"CONCATENATE($G$1,D42,$H$1,D42,$I$1,J42,K42,L42)","v":"Name: \"Languages\\Maltese\"; Description: \"{cm:Maltese}\"; Types: full"}," ",null,null,{"$f":"CONCATENATE($O$1,D42,$P$1,D42)","v":"english.Maltese=Maltese"}," ","Мальтийский ",{"$f":"CONCATENATE(D42,$P$1,S42)","v":"Maltese=Мальтийский "}]
[null,"equ",null,"MathEquation",{"$f":"CONCATENATE($A$1,B43,$C$1,D43)","v":"Source: \"content\\tessdata\\equ.*\"; DestDir: \"{app}\\tessdata\"; Flags: ignoreversion; Components: Languages\\MathEquation"}," ",{"$nulls":3},"compact ","custom ","full",{"$f":"CONCATENATE($G$1,D43,$H$1,D43,$I$1,J43,K43,L43)","v":"Name: \"Languages\\MathEquation\"; Description: \"{cm:MathEquation}\"; Types: compact custom full"}," ",null,null,{"$f":"CONCATENATE($O$1,D43,$P$1,D43)","v":"english.MathEquation=MathEquation"}," ","Математика / уравнение ",{"$f":"CONCATENATE(D43,$P$1,S43)","v":"MathEquation=Математика / уравнение "}]
[null,"enm",null,"MiddleEnglish",{"$f":"CONCATENATE($A$1,B44,$C$1,D44)","v":"Source: \"content\\tessdata\\enm.*\"; DestDir: \"{app}\\tessdata\"; Flags: ignoreversion; Components: Languages\\MiddleEnglish"}," ",{"$nulls":5},"full",{"$f":"CONCATENATE($G$1,D44,$H$1,D44,$I$1,J44,K44,L44)","v":"Name: \"Languages\\MiddleEnglish\"; Description: \"{cm:MiddleEnglish}\"; Types: full"}," ",null,null,{"$f":"CONCATENATE($O$1,D44,$P$1,D44)","v":"english.MiddleEnglish=MiddleEnglish"}," ","Средневековый Английский",{"$f":"CONCATENATE(D44,$P$1,S44)","v":"MiddleEnglish=Средневековый Английский"}]
[null,"frm",null,"MiddleFrench",{"$f":"CONCATENATE($A$1,B45,$C$1,D45)","v":"Source: \"content\\tessdata\\frm.*\"; DestDir: \"{app}\\tessdata\"; Flags: ignoreversion; Components: Languages\\MiddleFrench"}," ",{"$nulls":5},"full",{"$f":"CONCATENATE($G$1,D45,$H$1,D45,$I$1,J45,K45,L45)","v":"Name: \"Languages\\MiddleFrench\"; Description: \"{cm:MiddleFrench}\"; Types: full"}," ",null,null,{"$f":"CONCATENATE($O$1,D45,$P$1,D45)","v":"english.MiddleFrench=MiddleFrench"}," ","Средневековый Французский",{"$f":"CONCATENATE(D45,$P$1,S45)","v":"MiddleFrench=Средневековый Французский"}]
[null,"nor",null,"Norwegian",{"$f":"CONCATENATE($A$1,B46,$C$1,D46)","v":"Source: \"content\\tessdata\\nor.*\"; DestDir: \"{app}\\tessdata\"; Flags: ignoreversion; Components: Languages\\Norwegian"}," ",{"$nulls":5},"full",{"$f":"CONCATENATE($G$1,D46,$H$1,D46,$I$1,J46,K46,L46)","v":"Name: \"Languages\\Norwegian\"; Description: \"{cm:Norwegian}\"; Types: full"}," ",null,null,{"$f":"CONCATENATE($O$1,D46,$P$1,D46)","v":"english.Norwegian=Norwegian"}," ","Норвежский ",{"$f":"CONCATENATE(D46,$P$1,S46)","v":"Norwegian=Норвежский "}]
[null,"pol",null,"Polish",{"$f":"CONCATENATE($A$1,B47,$C$1,D47)","v":"Source: \"content\\tessdata\\pol.*\"; DestDir: \"{app}\\tessdata\"; Flags: ignoreversion; Components: Languages\\Polish"}," ",{"$nulls":5},"full",{"$f":"CONCATENATE($G$1,D47,$H$1,D47,$I$1,J47,K47,L47)","v":"Name: \"Languages\\Polish\"; Description: \"{cm:Polish}\"; Types: full"}," ",null,null,{"$f":"CONCATENATE($O$1,D47,$P$1,D47)","v":"english.Polish=Polish"}," ","Польский ",{"$f":"CONCATENATE(D47,$P$1,S47)","v":"Polish=Польский "}]
[null,"por",null,"Portuguese",{"$f":"CONCATENATE($A$1,B48,$C$1,D48)","v":"Source: \"content\\tessdata\\por.*\"; DestDir: \"{app}\\tessdata\"; Flags: ignoreversion; Components: Languages\\Portuguese"}," ",{"$nulls":5},"full",{"$f":"CONCATENATE($G$1,D48,$H$1,D48,$I$1,J48,K48,L48)","v":"Name: \"Languages\\Portuguese\"; Description: \"{cm:Portuguese}\"; Types: full"}," ",null,null,{"$f":"CONCATENATE($O$1,D48,$P$1,D48)","v":"english.Portuguese=Portuguese"}," ","Португальский ",{"$f":"CONCATENATE(D48,$P$1,S48)","v":"Portuguese=Португальский "}]
[null,"ron",null,"Romanian",{"$f":"CONCATENATE($A$1,B49,$C$1,D49)","v":"Source: \"content\\tessdata\\ron.*\"; DestDir: \"{app}\\tessdata\"; Flags: ignoreversion; Components: Languages\\Romanian"}," ",{"$nulls":5},"full",{"$f":"CONCATENATE($G$1,D49,$H$1,D49,$I$1,J49,K49,L49)","v":"Name: \"Languages\\Romanian\"; Description: \"{cm:Romanian}\"; Types: full"}," ",null,null,{"$f":"CONCATENATE($O$1,D49,$P$1,D49)","v":"english.Romanian=Romanian"}," ","Румынский ",{"$f":"CONCATENATE(D49,$P$1,S49)","v":"Romanian=Румынский "}]
[null,"rus",null,"Russian",{"$f":"CONCATENATE($A$1,B50,$C$1,D50)","v":"Source: \"content\\tessdata\\rus.*\"; DestDir: \"{app}\\tessdata\"; Flags: ignoreversion; Components: Languages\\Russian"}," ",{"$nulls":3},"compact ","custom ","full",{"$f":"CONCATENATE($G$1,D50,$H$1,D50,$I$1,J50,K50,L50)","v":"Name: \"Languages\\Russian\"; Description: \"{cm:Russian}\"; Types: compact custom full"}," ",null,null,{"$f":"CONCATENATE($O$1,D50,$P$1,D50)","v":"english.Russian=Russian"}," ","Русский ",{"$f":"CONCATENATE(D50,$P$1,S50)","v":"Russian=Русский "}]
[null,"srp",null,"Serbian",{"$f":"CONCATENATE($A$1,B51,$C$1,D51)","v":"Source: \"content\\tessdata\\srp.*\"; DestDir: \"{app}\\tessdata\"; Flags: ignoreversion; Components: Languages\\Serbian"}," ",{"$nulls":5},"full",{"$f":"CONCATENATE($G$1,D51,$H$1,D51,$I$1,J51,K51,L51)","v":"Name: \"Languages\\Serbian\"; Description: \"{cm:Serbian}\"; Types: full"}," ",null,null,{"$f":"CONCATENATE($O$1,D51,$P$1,D51)","v":"english.Serbian=Serbian"}," ","Сербский ",{"$f":"CONCATENATE(D51,$P$1,S51)","v":"Serbian=Сербский "}]
[null,"slk",null,"Slovakian",{"$f":"CONCATENATE($A$1,B52,$C$1,D52)","v":"Source: \"content\\tessdata\\slk.*\"; DestDir: \"{app}\\tessdata\"; Flags: ignoreversion; Components: Languages\\Slovakian"}," ",{"$nulls":5},"full",{"$f":"CONCATENATE($G$1,D52,$H$1,D52,$I$1,J52,K52,L52)","v":"Name: \"Languages\\Slovakian\"; Description: \"{cm:Slovakian}\"; Types: full"}," ",null,null,{"$f":"CONCATENATE($O$1,D52,$P$1,D52)","v":"english.Slovakian=Slovakian"}," ","Словацкий",{"$f":"CONCATENATE(D52,$P$1,S52)","v":"Slovakian=Словацкий"}]
[null,"slv",null,"Slovenian",{"$f":"CONCATENATE($A$1,B53,$C$1,D53)","v":"Source: \"content\\tessdata\\slv.*\"; DestDir: \"{app}\\tessdata\"; Flags: ignoreversion; Components: Languages\\Slovenian"}," ",{"$nulls":5},"full",{"$f":"CONCATENATE($G$1,D53,$H$1,D53,$I$1,J53,K53,L53)","v":"Name: \"Languages\\Slovenian\"; Description: \"{cm:Slovenian}\"; Types: full"}," ",null,null,{"$f":"CONCATENATE($O$1,D53,$P$1,D53)","v":"english.Slovenian=Slovenian"}," ","Словенский ",{"$f":"CONCATENATE(D53,$P$1,S53)","v":"Slovenian=Словенский "}]
[null,"spa",null,"Spanish",{"$f":"CONCATENATE($A$1,B54,$C$1,D54)","v":"Source: \"content\\tessdata\\spa.*\"; DestDir: \"{app}\\tessdata\"; Flags: ignoreversion; Components: Languages\\Spanish"}," ",{"$nulls":3},"compact ","custom ","full",{"$f":"CONCATENATE($G$1,D54,$H$1,D54,$I$1,J54,K54,L54)","v":"Name: \"Languages\\Spanish\"; Description: \"{cm:Spanish}\"; Types: compact custom full"}," ",null,null,{"$f":"CONCATENATE($O$1,D54,$P$1,D54)","v":"english.Spanish=Spanish"}," ","Испанский ",{"$f":"CONCATENATE(D54,$P$1,S54)","v":"Spanish=Испанский "}]
[null,"swa",null,"Swahili",{"$f":"CONCATENATE($A$1,B55,$C$1,D55)","v":"Source: \"content\\tessdata\\swa.*\"; DestDir: \"{app}\\tessdata\"; Flags: ignoreversion; Components: Languages\\Swahili"}," ",{"$nulls":5},"full",{"$f":"CONCATENATE($G$1,D55,$H$1,D55,$I$1,J55,K55,L55)","v":"Name: \"Languages\\Swahili\"; Description: \"{cm:Swahili}\"; Types: full"}," ",null,null,{"$f":"CONCATENATE($O$1,D55,$P$1,D55)","v":"english.Swahili=Swahili"}," ","Суахили ",{"$f":"CONCATENATE(D55,$P$1,S55)","v":"Swahili=Суахили "}]
[null,"swe",null,"Swedish",{"$f":"CONCATENATE($A$1,B56,$C$1,D56)","v":"Source: \"content\\tessdata\\swe.*\"; DestDir: \"{app}\\tessdata\"; Flags: ignoreversion; Components: Languages\\Swedish"}," ",{"$nulls":5},"full",{"$f":"CONCATENATE($G$1,D56,$H$1,D56,$I$1,J56,K56,L56)","v":"Name: \"Languages\\Swedish\"; Description: \"{cm:Swedish}\"; Types: full"}," ",null,null,{"$f":"CONCATENATE($O$1,D56,$P$1,D56)","v":"english.Swedish=Swedish"}," ","Шведский ",{"$f":"CONCATENATE(D56,$P$1,S56)","v":"Swedish=Шведский "}]
[null,"tgl",null,"Tagalog",{"$f":"CONCATENATE($A$1,B57,$C$1,D57)","v":"Source: \"content\\tessdata\\tgl.*\"; DestDir: \"{app}\\tessdata\"; Flags: ignoreversion; Components: Languages\\Tagalog"}," ",{"$nulls":5},"full",{"$f":"CONCATENATE($G$1,D57,$H$1,D57,$I$1,J57,K57,L57)","v":"Name: \"Languages\\Tagalog\"; Description: \"{cm:Tagalog}\"; Types: full"}," ",null,null,{"$f":"CONCATENATE($O$1,D57,$P$1,D57)","v":"english.Tagalog=Tagalog"}," ","Тагальский ",{"$f":"CONCATENATE(D57,$P$1,S57)","v":"Tagalog=Тагальский "}]
[null,"tam",null,"Tamil",{"$f":"CONCATENATE($A$1,B58,$C$1,D58)","v":"Source: \"content\\tessdata\\tam.*\"; DestDir: \"{app}\\tessdata\"; Flags: ignoreversion; Components: Languages\\Tamil"}," ",{"$nulls":5},"full",{"$f":"CONCATENATE($G$1,D58,$H$1,D58,$I$1,J58,K58,L58)","v":"Name: \"Languages\\Tamil\"; Description: \"{cm:Tamil}\"; Types: full"}," ",null,null,{"$f":"CONCATENATE($O$1,D58,$P$1,D58)","v":"english.Tamil=Tamil"}," ","Тамильский ",{"$f":"CONCATENATE(D58,$P$1,S58)","v":"Tamil=Тамильский "}]
[null,"tel",null,"Telugu",{"$f":"CONCATENATE($A$1,B59,$C$1,D59)","v":"Source: \"content\\tessdata\\tel.*\"; DestDir: \"{app}\\tessdata\"; Flags: ignoreversion; Components: Languages\\Telugu"}," ",{"$nulls":5},"full",{"$f":"CONCATENATE($G$1,D59,$H$1,D59,$I$1,J59,K59,L59)","v":"Name: \"Languages\\Telugu\"; Description: \"{cm:Telugu}\"; Types: full"}," ",null,null,{"$f":"CONCATENATE($O$1,D59,$P$1,D59)","v":"english.Telugu=Telugu"}," ","Телугу ",{"$f":"CONCATENATE(D59,$P$1,S59)","v":"Telugu=Телугу "}]
[null,"tha",null,"Thai",{"$f":"CONCATENATE($A$1,B60,$C$1,D60)","v":"Source: \"content\\tessdata\\tha.*\"; DestDir: \"{app}\\tessdata\"; Flags: ignoreversion; Components: Languages\\Thai"}," ",{"$nulls":5},"full",{"$f":"CONCATENATE($G$1,D60,$H$1,D60,$I$1,J60,K60,L60)","v":"Name: \"Languages\\Thai\"; Description: \"{cm:Thai}\"; Types: full"}," ",null,null,{"$f":"CONCATENATE($O$1,D60,$P$1,D60)","v":"english.Thai=Thai"}," ","Тайский ",{"$f":"CONCATENATE(D60,$P$1,S60)","v":"Thai=Тайский "}]
[null,"tur",null,"Turkish",{"$f":"CONCATENATE($A$1,B61,$C$1,D61)","v":"Source: \"content\\tessdata\\tur.*\"; DestDir: \"{app}\\tessdata\"; Flags: ignoreversion; Components: Languages\\Turkish"}," ",{"$nulls":5},"full",{"$f":"CONCATENATE($G$1,D61,$H$1,D61,$I$1,J61,K61,L61)","v":"Name: \"Languages\\Turkish\"; Description: \"{cm:Turkish}\"; Types: full"}," ",null,null,{"$f":"CONCATENATE($O$1,D61,$P$1,D61)","v":"english.Turkish=Turkish"}," ","Турецкий ",{"$f":"CONCATENATE(D61,$P$1,S61)","v":"Turkish=Турецкий "}]
[null,"ukr",null,"Ukrainian",{"$f":"CONCATENATE($A$1,B62,$C$1,D62)","v":"Source: \"content\\tessdata\\ukr.*\"; DestDir: \"{app}\\tessdata\"; Flags: ignoreversion; Components: Languages\\Ukrainian"}," ",{"$nulls":5},"full",{"$f":"CONCATENATE($G$1,D62,$H$1,D62,$I$1,J62,K62,L62)","v":"Name: \"Languages\\Ukrainian\"; Description: \"{cm:Ukrainian}\"; Types: full"}," ",null,null,{"$f":"CONCATENATE($O$1,D62,$P$1,D62)","v":"english.Ukrainian=Ukrainian"}," ","Украинский ",{"$f":"CONCATENATE(D62,$P$1,S62)","v":"Ukrainian=Украинский "}]
[null,"vie",null,"Vietnamese",{"$f":"CONCATENATE($A$1,B63,$C$1,D63)","v":"Source: \"content\\tessdata\\vie.*\"; DestDir: \"{app}\\tessdata\"; Flags: ignoreversion; Components: Languages\\Vietnamese"}," ",{"$nulls":5},"full",{"$f":"CONCATENATE($G$1,D63,$H$1,D63,$I$1,J63,K63,L63)","v":"Name: \"Languages\\Vietnamese\"; Description: \"{cm:Vietnamese}\"; Types: full"}," ",null,null,{"$f":"CONCATENATE($O$1,D63,$P$1,D63)","v":"english.Vietnamese=Vietnamese"}," ","Вьетнамский",{"$f":"CONCATENATE(D63,$P$1,S63)","v":"Vietnamese=Вьетнамский"}]
[{"$nulls":17}," "]

{"sheet":"Лист2","index":1,"n_rows":0,"n_cols":0,"rows_kept":0}

{"sheet":"Лист3","index":2,"n_rows":0,"n_cols":0,"rows_kept":0}